bitfinex/quotes_ETHUSD_20240824
["timestamp","ask_amount","ask_price","bid_price","bid_amount"]
[1724542445543,0.75681861,2764.5,2764.4,3.61741]
[1724542446540,2.18574459,2764.6,2764.4,3.61741]
[1724542446770,0.75681861,2764.5,2764.2,6.61762]
[1724542446977,2.18574459,2764.4,2764.3,3.0]
[1724542447483,1.42892598,2764.4,2764.3,3.0]
[1724542447674,0.75681861,2764.5,2764.3,3.0]
[1724542448187,2.18574459,2764.6,2764.3,6.61746]
[1724542448355,2.18574459,2764.6,2764.4,3.61741]
[1724542450039,1.13659215,2764.7,2764.6,3.61715]
[1724542450040,0.75681861,2764.7,2764.6,3.61715]
[1724542450264,2.18574459,2764.7,2764.6,3.61715]
[1724542453777,0.75681861,2764.7,2764.6,3.61715]
[1724542453951,0.75681861,2764.8,2764.7,3.61702]
[1724542455385,0.75681861,2765.0,2764.9,3.61676]
[1724542455591,0.75681861,2765.1,2765.0,3.61663]
[1724542455793,0.75681861,2765.1,2765.0,7.23326]
[1724542456298,0.75681861,2765.2,2765.1,3.6165]
[1724542457551,1.13659215,2765.3,2765.1,3.6165]
[1724542457552,0.75681861,2765.3,2765.1,6.680913]
[1724542457752,0.75681861,2765.4,2765.3,3.61624]
[1724542458173,0.75681861,2765.5,2765.2,3.61637]
[1724542458586,0.75681861,2765.4,2765.2,3.61637]
[1724542458889,2.18574459,2765.4,2765.2,3.61637]
[1724542461491,2.18574459,2765.4,2765.1,2.3411]
[1724542463169,2.18574459,2765.4,2765.1,5.95759]
[1724542463368,2.18574459,2765.4,2765.1,6.915002]
[1724542464492,2.18574459,2765.4,2765.2,3.61637]
[1724542464797,1.42892598,2765.4,2765.2,3.61637]
[1724542465373,2.18574459,2765.4,2765.2,3.61637]
[1724542466101,2.18574459,2765.4,2765.1,3.298512]
[1724542466316,2.18574459,2765.4,2765.1,6.914942]
[1724542466486,1.42892598,2765.4,2765.2,1.0531472]
[1724542467183,2.18574459,2765.5,2765.2,1.0531472]
[1724542467380,0.75681861,2765.5,2765.3,2.4376]
[1724542467610,0.75681861,2765.6,2765.3,2.4376]
[1724542467786,2.18574459,2765.6,2765.3,2.4376]
[1724542467983,2.18574459,2765.6,2765.3,3.14831072]
[1724542469404,0.75681861,2765.5,2765.3,3.14831072]
[1724542472497,0.75681861,2765.4,2765.3,3.14831072]
[1724542472698,2.56551813,2765.6,2765.3,3.14831072]
[1724542472699,0.75681861,2765.5,2765.3,3.14831072]
[1724542472877,0.75681861,2765.4,2765.3,3.14831072]
[1724542473511,0.75681861,2765.4,2765.3,2.4376]
[1724542473676,2.18574459,2765.4,2765.2,3.61636]
[1724542474211,5.80186459,2765.4,2764.9,3.0]
[1724542474416,1.42892598,2765.0,2764.9,3.0]
[1724542474575,2.18574459,2765.2,2764.9,9.09484]
[1724542474772,2.18574459,2765.2,2765.0,3.61659]
[1724542475124,0.75681861,2765.2,2765.0,7.23315]
[1724542475292,2.18574459,2765.3,2765.0,3.61656]
[1724542475491,2.18574459,2765.3,2765.0,3.61654]
[1724542475909,0.75681861,2765.2,2765.0,3.61654]
[1724542476099,0.75681861,2765.2,2765.0,5.01179584]
[1724542477626,0.75681861,2765.2,2765.1,3.6165]
[1724542478286,0.75681861,2765.3,2765.2,2.4782]
[1724542478487,0.75681861,2765.3,2765.2,6.09457]
[1724542478928,0.75681861,2765.4,2765.2,6.09457]
[1724542479127,0.75681861,2765.3,2765.2,6.09457]
[1724542479289,0.75681861,2765.3,2765.2,7.20520258]
[1724542479667,0.75681861,2765.3,2765.1,3.6165]
[1724542479790,0.75712684,2765.2,2765.1,3.6165]
[1724542480115,0.75712684,2765.2,2765.0,3.61663]
[1724542480690,2.18605282,2765.2,2765.0,3.61663]
[1724542480891,0.75712684,2765.1,2765.0,3.61663]
[1724542481097,0.75712684,2765.1,2765.0,6.61663]
[1724542481323,0.75712684,2765.1,2765.0,3.0]
[1724542481828,2.18605282,2765.2,2765.0,3.0]
[1724542482011,2.18605282,2765.2,2765.0,6.61656]
[1724542482190,0.75712684,2765.1,2765.0,6.61656]
[1724542482592,1.42892598,2765.2,2765.0,6.61656]
[1724542482593,2.18605282,2765.2,2765.0,6.61656]
[1724542482811,0.75712684,2765.1,2765.0,6.61656]
[1724542484014,0.75712684,2765.2,2765.0,6.61656]
[1724542484214,0.75712684,2765.1,2765.0,3.0]
[1724542484422,2.56551813,2765.2,2765.0,3.0]
[1724542484729,1.13659215,2765.1,2765.0,3.0]
[1724542485310,0.75752369,2765.1,2765.0,6.61655]
[1724542488336,0.75752369,2765.1,2765.0,10.23318]
[1724542489303,0.75752369,2765.1,2765.0,11.504318]
[1724542491172,0.75752369,2765.1,2765.0,13.961718]
[1724542491333,0.75752369,2765.4,2765.2,2.4574]
[1724542491651,1.13659215,2765.5,2765.4,3.61611]
[1724542491963,2.94438218,2765.5,2765.3,3.61624]
[1724542492261,1.13689046,2765.4,2765.3,3.61615]
[1724542492451,1.13689046,2765.4,2765.3,6.61615]
[1724542496130,2.94438218,2765.5,2765.4,3.61611]
[1724542496881,1.5154562,2765.5,2765.4,3.61611]
[1724542498543,1.51757602,2765.5,2765.4,3.61611]
[1724542499197,1.89564902,2765.5,2765.4,3.61611]
[1724542499340,1.89564902,2765.6,2765.5,3.61598]
[1724542500221,1.42892598,2765.7,2765.5,3.61598]
[1724542500553,3.70370481,2765.7,2765.4,3.6161]
[1724542501295,1.42892598,2765.5,2765.4,3.6161]
[1724542501594,1.42892598,2765.5,2765.3,10.23229]
[1724542501890,1.89798493,2765.4,2765.3,10.23229]
[1724542502977,1.89798493,2765.5,2765.4,3.61611]
[1724542507588,1.8978641,2765.5,2765.4,3.61611]
[1724542508857,1.42892598,2765.7,2765.5,3.61595]
[1724542509455,1.42892598,2765.7,2765.5,3.6159]
[1724542510509,3.70631103,2765.7,2765.5,3.6159]
[1724542510670,1.42892598,2765.7,2765.5,3.6159]
[1724542511357,1.42892598,2765.7,2765.3,10.2323]
[1724542511558,1.89780901,2765.5,2765.4,3.61608]
[1724542511764,1.89780091,2765.5,2765.4,3.61608]
[1724542513455,1.89776201,2765.5,2765.4,3.61608]
[1724542517014,3.32668799,2765.5,2765.4,3.61608]
[1724542518416,3.32662294,2765.5,2765.4,3.61608]
[1724542518876,1.89769696,2765.5,2765.4,3.61608]
[1724542523134,1.42892598,2765.7,2765.5,3.61592]
[1724542531615,3.70653416,2765.7,2765.5,3.61592]
[1724542532955,3.70744699,2765.7,2765.5,3.61592]
[1724542537564,2.27852101,2765.6,2765.5,3.61592]
[1724542537724,1.42892598,2765.7,2765.5,3.61592]
[1724542537920,2.27978953,2765.6,2765.5,3.61592]
[1724542539759,2.27989905,2765.6,2765.5,3.61592]
[1724542541022,1.42892598,2765.7,2765.5,3.61592]
[1724542541225,2.27989141,2765.6,2765.5,3.61592]
[1724542546034,2.27989141,2765.6,2765.3,9.00864]
[1724542546261,1.42892598,2765.5,2765.3,6.61615]
[1724542546637,2.27989141,2765.4,2765.0,3.61656]
[1724542546840,1.90012657,2765.1,2765.0,3.61656]
[1724542547060,3.70881739,2765.3,2765.2,3.61637]
[1724542547469,3.70915074,2765.3,2765.2,3.61637]
[1724542547970,1.42892598,2765.3,2765.2,3.61637]
[1724542548200,3.70915074,2765.3,2765.2,3.61637]
[1724542548356,1.42892598,2765.3,2765.2,3.61637]
[1724542550041,2.28022476,2765.4,2765.2,3.61637]
[1724542550243,1.89889815,2765.3,2765.2,3.61637]
[1724542552255,1.89874668,2765.3,2765.2,3.61637]
[1724542554180,1.89874668,2765.3,2765.2,8.195275]
[1724542555292,1.89874668,2765.4,2765.3,3.61624]
[1724542557095,1.89851647,2765.4,2765.3,3.61624]
[1724542557467,1.89849595,2765.4,2765.3,3.61624]
[1724542557659,1.89850886,2765.4,2765.3,3.61624]
[1724542559468,1.89850886,2765.4,2765.0,2.3844]
[1724542559671,1.89850886,2765.4,2765.0,6.00095]
[1724542559672,1.89850886,2765.2,2765.0,6.00095]
[1724542560183,1.89850886,2765.2,2765.0,9.61751]
[1724542560366,1.89850886,2765.2,2765.0,9.61749]
[1724542560569,1.89850886,2765.2,2765.0,6.00094]
[1724542560883,1.89850886,2765.1,2765.0,6.00094]
[1724542561088,1.89861937,2765.2,2765.0,9.00094]
[1724542561260,1.89861937,2765.1,2765.0,12.61749]
[1724542561461,1.89861937,2765.2,2765.0,12.61748]
[1724542561796,1.5188657,2765.1,2765.0,9.00094]
[1724542564169,1.89861937,2765.2,2765.0,9.00094]
[1724542564369,1.51867616,2765.1,2765.0,9.00094]
[1724542566599,1.89813504,2765.2,2765.0,9.00094]
[1724542567168,1.51851018,2765.1,2765.0,9.00094]
[1724542567604,1.51851018,2765.1,2765.0,12.61757]
[1724542567813,1.51851018,2765.2,2765.1,3.6165]
[1724542568012,1.51851018,2765.3,2765.2,3.61637]
[1724542569318,1.51851018,2765.3,2765.2,7.23274]
[1724542569626,1.51851018,2765.3,2765.2,9.61714]
[1724542569790,1.51851018,2765.3,2765.2,11.0050297]
[1724542572112,1.51851018,2765.4,2765.3,7.23248]
[1724542572430,1.13869884,2765.4,2765.3,3.61624]
[1724542572585,1.51851018,2765.5,2765.4,3.61611]
[1724542577027,1.51851018,2765.5,2765.4,7.23222]
[1724542580961,3.32636021,2765.5,2765.2,3.6163]
[1724542581168,3.32636021,2765.5,2765.3,3.0]
[1724542581311,1.51804093,2765.4,2765.3,9.03024]
[1724542583645,1.89743423,2765.5,2765.3,6.61624]
[1724542583849,1.89743423,2765.5,2765.3,3.61624]
[1724542584344,1.89743423,2765.5,2765.0,3.0]
[1724542584345,2.3075,2765.3,2765.0,3.61656]
[1724542584546,2.94723429,2765.1,2765.0,3.61656]
[1724542584714,1.42892598,2765.1,2765.0,3.61656]
[1724542585572,3.32681137,2765.1,2764.9,7.31]
[1724542585872,1.51812579,2765.0,2764.9,10.92676]
[1724542586029,1.51812579,2765.0,2764.9,3.61676]
[1724542587301,1.51812579,2765.0,2764.8,3.61681]
[1724542587509,1.89788539,2765.2,2764.6,3.61712]
[1724542587510,5.92901655,2764.9,2764.6,3.61712]
[1724542587771,2.94714204,2764.7,2764.5,3.61726]
[1724542587977,1.13836064,2764.6,2764.5,3.61726]
[1724542588274,1.51821606,2764.6,2764.5,3.61726]
[1724542588631,1.42892598,2764.7,2764.5,3.61726]
[1724542588632,2.94714204,2764.7,2764.5,3.61726]
[1724542589439,1.13768164,2764.6,2764.5,3.61726]
[1724542590867,2.94714204,2764.7,2764.5,3.61726]
[1724542591071,1.13742822,2764.6,2764.5,3.61726]
[1724542591265,1.51821606,2764.6,2764.3,3.61744]
[1724542591465,0.75831118,2764.4,2764.3,3.61744]
[1724542592597,2.18723716,2764.5,2764.3,3.61744]
[1724542592893,0.75831118,2764.4,2764.3,3.61744]
[1724542593475,2.18723716,2764.5,2764.3,3.61744]
[1724542593895,2.18723716,2764.5,2764.3,7.23489]
[1724542594782,0.75831118,2764.5,2764.4,3.61742]
[1724542595003,0.75831118,2764.6,2764.4,6.08182]
[1724542596565,0.55831118,2764.6,2764.4,6.08182]
[1724542599584,1.13746678,2764.8,2764.4,6.08182]
[1724542600597,1.13746678,2764.8,2764.5,3.61725]
[1724542605457,5.02489276,2764.9,2764.5,3.61725]
[1724542606393,0.75707478,2764.7,2764.5,3.61725]
[1724542608325,0.75707478,2764.7,2764.5,3.61721]
[1724542608734,0.75707478,2764.7,2764.5,7.23439]
[1724542609229,0.75707478,2764.7,2764.5,9.69879]
[1724542609632,0.75707478,2764.7,2764.5,6.08158]
[1724542610158,0.75707478,2764.7,2764.5,9.69878]
[1724542610452,0.75707478,2764.7,2764.5,6.08158]
[1724542611031,0.75707478,2764.7,2764.6,3.61715]
[1724542611231,0.75707478,2764.7,2764.5,6.08158]
[1724542612346,0.75707478,2764.8,2764.5,9.6988]
[1724542612531,0.75707478,2764.7,2764.5,9.6988]
[1724542613238,0.75707478,2764.7,2764.5,6.08158]
[1724542613742,0.75707478,2764.7,2764.5,9.69879]
[1724542614141,0.75707478,2764.7,2764.5,6.08158]
[1724542618225,0.75707478,2764.7,2764.5,3.61718]
[1724542620627,0.75707478,2764.7,2764.5,5.92958]
[1724542621257,0.75707478,2764.7,2764.5,3.61718]
[1724542621436,0.75707478,2764.6,2764.5,3.61718]
[1724542622374,0.75707478,2764.7,2764.5,3.61718]
[1724542622674,0.75707478,2764.6,2764.5,3.61718]
[1724542623338,0.75707478,2764.6,2764.3,3.61748]
[1724542623540,0.75707478,2764.5,2764.3,3.61747]
[1724542625033,0.75707478,2764.4,2764.3,3.61747]
[1724542626489,1.13746678,2764.4,2764.1,5.93012]
[1724542626787,1.13746678,2764.4,2764.1,3.61772]
[1724542626788,0.7584932,2764.2,2764.1,3.61772]
[1724542626934,0.7584932,2764.3,2764.2,3.61768]
[1724542628031,1.13746678,2764.3,2764.2,3.61768]
[1724542628398,2.94714204,2764.3,2764.0,3.61783]
[1724542628688,1.13853719,2764.1,2764.0,3.61783]
[1724542629160,2.3137,2763.8,2762.9,0.56708909]
[1724542629360,5.04817598,2763.0,2762.3,3.62014]
[1724542629534,5.04817598,2763.0,2762.2,3.62028]
[1724542629535,0.75846961,2762.6,2762.2,3.62028]
[1724542629883,0.75846961,2762.5,2762.2,3.62028]
[1724542630243,2.18739559,2762.7,2762.4,3.62003]
[1724542630644,1.42892598,2762.5,2762.2,3.62028]
[1724542631534,1.42892598,2762.5,2762.3,3.62006]
[1724542631735,1.42892598,2762.5,2762.4,3.62004]
[1724542633063,1.42892598,2762.7,2762.5,3.61985]
[1724542636575,1.42892598,2762.7,2762.5,6.00115]
[1724542636779,1.42892598,2762.7,2761.9,3.62057]
[1724542636780,3.61991,2762.5,2761.9,3.62057]
[1724542636980,1.42892598,2762.4,2762.0,6.00176]
[1724542637762,1.42892598,2762.4,2762.1,3.62034]
[1724542638337,5.97983,2762.9,2762.2,3.62027]
[1724542638538,1.42892598,2762.6,2762.2,3.62027]
[1724542640546,5.97983,2762.9,2762.2,3.62027]
[1724542640774,7.28252563,2762.9,2762.3,3.62016]
[1724542641441,2.43853961,2763.7,2762.0,2.3813]
[1724542641442,0.75846961,2763.5,2763.2,3.61899]
[1724542641747,5.50668961,2763.9,2763.3,3.61884]
[1724542641748,3.61815,2763.9,2763.3,3.61884]
[1724542642875,3.61815,2763.9,2763.3,3.61884]
[1724542643234,3.61822,2763.8,2763.3,3.61884]
[1724542643747,3.61803,2764.0,2763.3,7.23761]
[1724542643973,3.61803,2764.0,2763.3,3.61877]
[1724542644148,3.61803,2764.0,2763.3,4.218777]
[1724542644348,0.59817176,2764.1,2763.3,4.218777]
[1724542644551,5.97805,2764.3,2763.5,3.61858]
[1724542644754,3.61782,2764.1,2763.5,3.61858]
[1724542644955,3.61796,2764.0,2763.3,4.218757]
[1724542645900,3.61815,2763.9,2763.1,6.00037]
[1724542646103,3.61815,2763.9,2763.2,6.61895]
[1724542646402,3.61815,2763.9,2763.3,3.61876]
[1724542646994,10.66375632,2764.1,2763.4,3.61871]
[1724542647395,3.61794,2764.0,2763.4,3.61871]
[1724542647594,3.61794,2764.0,2763.4,4.642457]
[1724542648168,3.61844,2763.7,2763.1,6.00032]
[1724542648384,3.61849,2763.6,2763.1,3.61902]
[1724542648580,3.61849,2763.6,2762.9,3.61933]
[1724542648903,3.61849,2763.6,2762.9,3.61929]
[1724542649606,3.61862,2763.5,2762.9,7.23859]
[1724542649780,0.94068063,2763.6,2763.0,3.61924]
[1724542650615,4.55925063,2763.6,2762.9,3.61929]
[1724542650786,3.6186,2763.5,2762.9,3.61929]
[1724542651406,0.94068063,2763.6,2763.0,3.61921]
[1724542652372,4.55916063,2763.6,2763.0,3.61921]
[1724542654499,3.61894,2763.3,2762.7,3.61957]
[1724542655118,3.61894,2763.3,2762.7,3.61956]
[1724542656196,7.04662632,2763.5,2762.8,3.61943]
[1724542656914,7.04662632,2763.5,2762.5,2.3617]
[1724542656915,3.61934,2763.0,2762.5,2.3617]
[1724542657118,3.61912,2763.1,2762.5,2.3617]
[1724542657316,3.61912,2763.1,2762.5,9.60134]
[1724542657839,3.61935,2763.0,2762.4,3.61996]
[1724542658919,3.61935,2763.0,2762.3,3.62009]
[1724542658920,3.61935,2763.0,2762.5,3.6199]
[1724542662187,10.66614632,2763.2,2762.5,7.23972]
[1724542662411,1.17424039,2763.1,2762.6,3.61969]
[1724542662620,3.42796632,2763.2,2762.7,3.61955]
[1724542662929,7.04695632,2763.2,2762.7,3.61955]
[1724542665833,10.66603632,2763.2,2762.5,7.23965]
[1724542666139,7.80542593,2763.2,2762.5,3.6198]
[1724542666363,1.25007635,2763.1,2762.5,3.6198]
[1724542666845,3.62026,2762.3,2761.7,3.62089]
[1724542667004,3.62026,2762.3,2761.8,3.62082]
[1724542667329,3.62026,2762.3,2761.5,5.98285]
[1724542667330,3.62026,2762.3,2761.7,3.62095]
[1724542670873,0.75846961,2762.4,2762.0,2.3617]
[1724542671160,4.37816961,2762.7,2762.1,3.62032]
[1724542672109,0.75846961,2762.7,2762.3,3.62014]
[1724542673553,0.75846961,2762.6,2762.3,3.62014]
[1724542674347,0.75846961,2762.5,2762.3,3.62014]
[1724542679165,0.75846961,2762.5,2762.4,3.62004]
[1724542679457,0.75846961,2762.6,2762.4,3.62004]
[1724542680363,0.75846961,2762.6,2762.5,2.4213]
[1724542680689,0.75846961,2762.7,2762.5,6.0412]
[1724542680963,0.75846961,2762.8,2762.5,6.0412]
[1724542682630,0.75846961,2762.9,2762.5,6.0412]
[1724542682939,0.75846961,2762.8,2762.5,7.0797363]
[1724542683448,0.75846961,2762.8,2762.5,10.6995663]
[1724542683664,0.75846961,2762.8,2762.5,7.0796463]
[1724542683832,0.75846961,2762.9,2762.5,7.0796463]
[1724542684031,0.75846961,2762.8,2762.5,7.0796463]
[1724542685366,0.75846961,2762.8,2762.5,10.6994663]
[1724542687447,0.75846961,2762.8,2762.5,6.04111]
[1724542687875,0.75846961,2762.8,2762.5,9.66094]
[1724542688056,0.75846961,2762.9,2762.5,9.66094]
[1724542688371,0.75846961,2762.8,2762.7,3.61964]
[1724542688576,0.75846961,2762.9,2762.7,3.61964]
[1724542688735,0.75846961,2763.0,2762.8,9.66032]
[1724542688943,0.75846961,2763.1,2762.9,3.61938]
[1724542689840,0.75846961,2763.2,2762.9,3.61938]
[1724542690206,0.75846961,2763.1,2762.9,3.61938]
[1724542690349,0.75846961,2763.1,2763.0,3.61925]
[1724542691951,0.75846961,2763.2,2763.0,3.61925]
[1724542692150,0.75846961,2763.1,2763.0,3.61925]
[1724542696672,0.75846961,2763.1,2763.0,7.2385]
[1724542696878,0.75846961,2763.2,2763.1,7.23824]
[1724542697181,0.75846961,2763.3,2763.2,9.49928]
[1724542697384,1.13770441,2763.7,2763.2,5.2613]
[1724542697385,0.75846961,2763.6,2763.2,5.2613]
[1724542697548,0.75846961,2763.6,2763.2,3.545936]
[1724542697953,0.75846961,2763.6,2763.5,3.61859]
[1724542698599,2.18570533,2763.6,2763.5,3.61859]
[1724542700457,0.75846961,2763.6,2763.5,3.61859]
[1724542701275,0.75846961,2763.7,2763.5,3.61859]
[1724542701610,0.75846961,2763.6,2763.5,3.61859]
[1724542702475,0.75846961,2763.7,2763.5,3.61859]
[1724542703709,2.4431,2763.6,2763.5,3.61859]
[1724542703908,3.96003922,2763.6,2763.0,6.06252]
[1724542704056,0.75714437,2763.4,2763.1,3.61907]
[1724542705376,0.75714437,2763.4,2763.0,6.06245]
[1724542706185,0.75714437,2763.5,2763.0,6.06245]
[1724542706404,0.75714437,2763.4,2763.0,6.06245]
[1724542706623,0.75714437,2763.4,2763.2,3.61895]
[1724542707180,0.75714437,2763.4,2763.0,6.06245]
[1724542707525,0.75714437,2763.3,2763.0,6.06245]
[1724542707747,0.75714437,2763.3,2763.0,3.61915]
[1724542710019,0.75714437,2763.3,2762.8,9.06273]
[1724542710183,1.34243439,2763.3,2762.8,12.68216]
[1724542710387,0.75714437,2763.2,2762.8,10.23886]
[1724542711228,0.75714437,2763.2,2762.6,2.4433]
[1724542711229,0.75714437,2763.2,2762.6,9.68265]
[1724542711541,0.75714437,2763.1,2762.7,6.61955]
[1724542712139,0.75714437,2763.1,2762.6,6.06295]
[1724542712436,0.75714437,2763.0,2762.6,7.23934]
[1724542712580,0.75714437,2763.0,2762.6,3.61965]
[1724542713430,0.75714437,2762.9,2762.6,7.23935]
[1724542713580,0.75714437,2762.9,2762.6,3.61965]
[1724542713780,0.75714437,2762.9,2762.7,3.61964]
[1724542714644,0.75714437,2762.9,2762.6,3.61965]
[1724542715342,0.75714437,2762.8,2762.6,7.23934]
[1724542715895,0.75714437,2762.8,2762.7,3.61964]
[1724542716094,1.51693922,2763.1,2762.7,3.61964]
[1724542716095,0.75714437,2763.0,2762.8,3.61951]
[1724542716287,0.75714437,2762.9,2762.8,3.61951]
[1724542717112,0.75714437,2762.9,2762.7,3.61964]
[1724542717481,0.75714437,2762.9,2762.7,7.23914]
[1724542718583,0.75714437,2762.9,2762.8,3.61951]
[1724542719122,0.75714437,2763.0,2762.7,3.61957]
[1724542719339,0.75714437,2762.9,2762.7,3.61957]
[1724542721816,0.75714437,2762.8,2762.7,3.61957]
[1724542722968,2.18513743,2762.9,2762.7,3.61957]
[1724542723337,0.75714437,2762.8,2762.7,3.61957]
[1724542726647,2.18513743,2762.9,2762.7,3.61957]
[1724542727425,0.75714437,2762.8,2762.7,3.61957]
[1724542727823,2.18513743,2762.9,2762.7,3.61957]
[1724542728362,0.75714437,2762.8,2762.7,3.61957]
[1724542729963,2.18513743,2762.9,2762.8,5.97991]
[1724542730575,1.42799306,2762.9,2762.8,5.97991]
[1724542733591,2.56370962,2762.9,2762.8,2.3604]
[1724542735543,2.56370962,2762.9,2762.6,3.6197]
[1724542735870,1.42799306,2762.7,2762.6,3.6197]
[1724542736286,2.56370962,2762.7,2762.6,3.6197]
[1724542737182,2.18688187,2762.7,2762.6,3.6197]
[1724542737783,2.56370962,2762.7,2762.6,3.6197]
[1724542737982,2.56370962,2762.7,2762.5,7.23973]
[1724542738581,0.75889973,2762.6,2762.5,7.23973]
[1724542738787,2.56370962,2762.7,2762.5,3.61983]
[1724542738982,2.56370962,2762.7,2762.5,7.23966]
[1724542739496,2.56370962,2762.7,2762.6,3.61977]
[1724542739950,2.18680067,2762.7,2762.6,3.61977]
[1724542740469,1.42799306,2762.7,2762.6,3.61977]
[1724542744162,2.18675177,2762.7,2762.3,3.62008]
[1724542744360,2.18675177,2762.5,2762.4,6.62004]
[1724542745068,2.18675177,2762.5,2762.4,3.0]
[1724542746096,2.18675177,2762.5,2762.4,6.62004]
[1724542748407,1.42799306,2762.5,2762.4,6.62004]
[1724542749372,2.56370962,2762.5,2762.4,6.62004]
[1724542752610,2.94493228,2762.5,2762.4,3.0]
[1724542752836,1.42799306,2762.5,2762.3,3.62008]
[1724542753010,1.51977527,2762.4,2762.3,3.62008]
[1724542753182,1.51977527,2762.4,2762.1,3.62031]
[1724542753384,1.13989805,2762.2,2762.1,3.62031]
[1724542753584,1.51977527,2762.2,2762.1,3.62031]
[1724542754251,1.51977527,2762.2,2761.8,2.3234]
[1724542754252,2.94776833,2762.3,2761.9,3.62061]
[1724542754379,2.56776417,2762.1,2761.9,3.62061]
[1724542754803,1.13977111,2762.0,2761.9,3.62061]
[1724542756619,1.13977111,2762.0,2761.7,3.62089]
[1724542756812,2.1874927,2761.9,2761.7,3.62089]
[1724542757318,1.42799306,2761.9,2761.8,3.62082]
[1724542757513,2.1874927,2761.9,2761.8,3.62082]
[1724542758080,1.42799306,2761.9,2761.8,3.62082]
[1724542758480,0.75949964,2762.0,2761.8,3.62082]
[1724542759228,0.75949964,2762.1,2761.9,9.55158]
[1724542759783,0.75949964,2762.1,2761.9,5.93089]
[1724542760023,0.75949964,2762.1,2761.9,9.5515]
[1724542760183,0.75949964,2762.1,2761.9,5.93081]
[1724542760384,0.75949964,2762.1,2761.9,5.93079]
[1724542760627,0.75949964,2762.2,2761.9,6.6193881]
[1724542762924,0.75949964,2762.1,2761.9,6.6193881]
[1724542764723,0.75949964,2762.2,2761.9,6.6193881]
[1724542766430,0.75949964,2762.1,2761.9,6.6193881]
[1724542766632,0.75949964,2762.2,2761.9,6.6193881]
[1724542766811,0.75949964,2762.2,2761.9,5.93079]
[1724542767737,0.75949964,2762.1,2761.9,5.93079]
[1724542768240,0.75949964,2762.2,2761.9,5.93079]
[1724542769724,0.75949964,2762.1,2761.9,5.93079]
[1724542769928,0.75949964,2762.2,2761.9,5.93079]
[1724542773941,1.42799306,2762.1,2761.9,3.62059]
[1724542774642,2.1874927,2762.1,2761.9,3.62059]
[1724542775351,0.75949964,2762.0,2761.9,3.62059]
[1724542776148,2.1874927,2762.1,2761.9,3.62059]
[1724542776981,0.75949964,2762.1,2761.9,3.62059]
[1724542779179,0.75949964,2762.1,2761.9,7.24119]
[1724542779786,0.75949964,2762.1,2761.9,3.62059]
[1724542780754,0.75949964,2762.1,2762.0,3.62056]
[1724542780956,0.75949964,2762.2,2762.1,2.3513]
[1724542781393,0.75949964,2762.2,2762.0,3.62048]
[1724542781559,0.75909408,2762.1,2762.0,3.62048]
[1724542785269,0.75909408,2762.2,2762.1,3.62043]
[1724542786003,1.13977111,2762.3,2762.1,3.62043]
[1724542786605,0.75926246,2762.2,2762.1,3.62043]
[1724542787164,1.13977111,2762.3,2762.1,3.62043]
[1724542787413,1.13977111,2762.3,2761.9,5.97197]
[1724542787601,1.13977111,2762.0,2761.9,3.62067]
[1724542788128,2.3945,2762.0,2761.5,3.64113]
[1724542788398,0.75950865,2761.7,2761.5,3.64113]
[1724542788602,0.75950865,2761.6,2761.5,3.64113]
[1724542788805,0.75950865,2761.7,2761.5,3.64113]
[1724542788991,0.75950865,2761.6,2761.5,3.64113]
[1724542789195,0.75950865,2761.7,2761.6,3.62108]
[1724542789396,0.75950865,2761.7,2761.6,7.24216]
[1724542793219,0.75950865,2761.7,2761.6,9.59346]
[1724542793367,0.75950865,2761.7,2761.6,10.554806]
[1724542796090,1.13926297,2761.9,2761.6,6.933726]
[1724542796290,0.75971395,2761.7,2761.6,10.554806]
[1724542798395,0.75971395,2761.7,2761.6,9.59346]
[1724542804647,0.75971395,2761.7,2761.6,3.62108]
[1724542804870,1.13926297,2761.7,2761.6,3.62108]
[1724542806546,3.32780426,2762.0,2761.7,3.62095]
[1724542806547,1.13926297,2761.8,2761.7,3.62095]
[1724542806747,1.13926297,2761.9,2761.7,3.62095]
[1724542807143,1.13926297,2761.9,2761.8,3.62082]
[1724542808756,1.13926297,2761.9,2761.6,7.24205]
[1724542809024,0.75987397,2761.7,2761.6,7.24205]
[1724542809766,1.13926297,2761.8,2761.7,3.62095]
[1724542811861,1.13926297,2761.8,2761.6,3.62098]
[1724542812070,1.13926297,2761.7,2761.6,3.62098]
[1724542814576,1.13926297,2761.8,2761.7,3.62095]
[1724542814741,1.13926297,2761.8,2761.7,5.97715]
[1724542815049,1.13926297,2761.8,2761.7,3.62095]
[1724542815435,1.13976002,2761.8,2761.7,3.62095]
[1724542818242,1.13976002,2761.8,2761.6,3.62106]
[1724542818243,1.51968002,2761.8,2761.6,3.62106]
[1724542818437,0.75985147,2761.7,2761.6,3.62106]
[1724542818663,1.1398384,2761.8,2761.6,3.62106]
[1724542819554,1.1398384,2761.7,2761.6,3.62106]
[1724542824578,1.1398384,2761.8,2761.6,3.62106]
[1724542825171,1.1398384,2761.8,2761.7,3.62095]
[1724542825567,1.1398384,2761.8,2761.7,5.97715]
[1724542825808,1.1398384,2761.8,2761.7,3.62095]
[1724542826080,1.51968002,2761.9,2761.7,3.62095]
[1724542827141,1.51968002,2761.8,2761.6,3.62106]
[1724542827342,1.14004078,2761.7,2761.6,3.62106]
[1724542828458,1.14004078,2761.7,2761.6,7.24214]
[1724542828661,1.14004078,2761.8,2761.7,9.5981]
[1724542828861,0.76001683,2761.9,2761.8,5.97702]
[1724542829074,0.76001683,2762.1,2762.0,7.24112]
[1724542829274,1.14004078,2762.3,2762.0,7.24112]
[1724542829275,0.76001683,2762.2,2762.1,9.59706]
[1724542829492,0.76001683,2762.3,2762.2,12.5968]
[1724542830154,1.14004078,2762.4,2762.3,3.62017]
[1724542836154,1.14004078,2762.4,2762.2,8.9765]
[1724542836356,1.42799306,2762.5,2762.0,3.62055]
[1724542836357,2.56803384,2762.3,2762.0,3.62055]
[1724542836561,2.18722849,2762.1,2762.0,3.62055]
[1724542836864,1.42799306,2762.1,2762.0,3.62055]
[1724542837066,2.18723647,2762.1,2762.0,3.62055]
[1724542837270,0.75924341,2762.1,2762.0,3.62055]
[1724542839292,1.42799306,2762.1,2761.9,3.62067]
[1724542839495,1.13888121,2762.0,2761.9,3.62067]
[1724542839890,1.13888121,2762.0,2761.7,7.2418]